[Event "Titled Tuesday Blitz June 6 Early 2023"]
[White "Kravtsiv, Martyn"]
[Black "Andreikin, Dmitry"]
[WhiteFideId "14113147"]
[BlackFideId "4158814"]
[WhiteElo "2695"]
[BlackElo "2736"]
[Result "0-1"]
[Round "7"]
[TimeControl "180+2"]
[Date "2023.06.06"]
[WhiteClock "0:00:01"]
[BlackClock "0:00:23"]
[Board "6"]

1. e4 {[%clk 0:03:00]}  g6 {[%clk 0:03:00]} 2. d4 {[%clk 0:02:59]}  Bg7 {[%clk 0:03:01]} 3. Nc3 {[%clk 0:03:00]}  c6 {[%clk 0:03:00]} 4. f4 {[%clk 0:02:59]}  Qb6 {[%clk 0:03:01]} 5. Nf3 {[%clk 0:02:55]}  Nh6 {[%clk 0:03:01]} 6. Na4 {[%clk 0:02:50]}  Qa5+ {[%clk 0:02:58]} 7. c3 {[%clk 0:02:50]}  d6 {[%clk 0:02:58]} 8. b4 {[%clk 0:02:45]}  Qc7 {[%clk 0:02:58]} 9. Bd3 {[%clk 0:02:44]}  a5 {[%clk 0:02:56]} 10. O-O {[%clk 0:02:38]}  axb4 {[%clk 0:02:56]} 11. cxb4 {[%clk 0:02:38]}  Bg4 {[%clk 0:02:54]} 12. Be2 {[%clk 0:02:35]}  Bxf3 {[%clk 0:02:50]} 13. Bxf3 {[%clk 0:02:34]}  Rxa4 {[%clk 0:02:49]} 14. Qxa4 {[%clk 0:01:46]}  Bxd4+ {[%clk 0:02:49]} 15. Kh1 {[%clk 0:01:47]}  Bxa1 {[%clk 0:02:49]} 16. f5 {[%clk 0:01:47]}  Bg7 {[%clk 0:02:45]} 17. g4 {[%clk 0:01:48]}  Ng8 {[%clk 0:02:34]} 18. g5 {[%clk 0:01:46]}  Be5 {[%clk 0:02:31]} 19. Bg4 {[%clk 0:01:40]}  gxf5 {[%clk 0:02:23]} 20. exf5 {[%clk 0:01:35]}  h6 {[%clk 0:02:23]} 21. g6 {[%clk 0:01:07]}  Nf6 {[%clk 0:02:23]} 22. Be2 {[%clk 0:00:58]}  Nbd7 {[%clk 0:02:18]} 23. Be3 {[%clk 0:00:57]}  d5 {[%clk 0:02:14]} 24. g7 {[%clk 0:00:39]}  Rh7 {[%clk 0:02:06]} 25. Rg1 {[%clk 0:00:28]}  Ng8 {[%clk 0:02:06]} 26. b5 {[%clk 0:00:20]}  Rxg7 {[%clk 0:02:01]} 27. Rc1 {[%clk 0:00:14]}  c5 {[%clk 0:00:57]} 28. b6 {[%clk 0:00:14]}  Qd8 {[%clk 0:00:50]} 29. Rxc5 {[%clk 0:00:11]}  Nf6 {[%clk 0:00:50]} 30. Bb5 {[%clk 0:00:04]}  Kf8 {[%clk 0:00:25]} 31. Bxd7 {[%clk 0:00:03]}  Nxd7 {[%clk 0:00:26]} 32. Rxd5 {[%clk 0:00:02]}  Bd6 {[%clk 0:00:26]} 33. Bxh6 {[%clk 0:00:01]}  Nf6 {[%clk 0:00:23]} 0-1


[Site "https://www.chess.com"]

[Event "Titled Tuesday Blitz June 6 Early 2023"]
[White "Gledura, Benjamin"]
[Black "Hakobyan, Aram"]
[WhiteFideId "712779"]
[BlackFideId "13306677"]
[WhiteElo "2537"]
[BlackElo "2584"]
[Result "1-0"]
[Round "7"]
[TimeControl "180+2"]
[Date "2023.06.06"]
[WhiteClock "0:00:44"]
[BlackClock "0:00:10"]
[Board "7"]

1. Nf3 {[%clk 0:02:59]}  g6 {[%clk 0:02:59]} 2. d4 {[%clk 0:02:56]}  Bg7 {[%clk 0:03:00]} 3. g3 {[%clk 0:02:56]}  d6 {[%clk 0:03:00]} 4. Bg2 {[%clk 0:02:57]}  Nf6 {[%clk 0:03:01]} 5. O-O {[%clk 0:02:57]}  O-O {[%clk 0:03:02]} 6. c4 {[%clk 0:02:57]}  Bf5 {[%clk 0:03:02]} 7. Nh4 {[%clk 0:02:49]}  Be4 {[%clk 0:03:02]} 8. Nf3 {[%clk 0:02:49]}  Bf5 {[%clk 0:02:54]} 9. Nc3 {[%clk 0:02:43]}  Ne4 {[%clk 0:02:53]} 10. Nd5 {[%clk 0:02:43]}  c6 {[%clk 0:02:52]} 11. Ne3 {[%clk 0:02:42]}  Be6 {[%clk 0:02:53]} 12. Qc2 {[%clk 0:02:40]}  d5 {[%clk 0:02:53]} 13. Ne5 {[%clk 0:02:34]}  Nf6 {[%clk 0:02:44]} 14. cxd5 {[%clk 0:02:28]}  cxd5 {[%clk 0:02:41]} 15. Bd2 {[%clk 0:02:26]}  Nfd7 {[%clk 0:02:35]} 16. Bc3 {[%clk 0:02:16]}  Nc6 {[%clk 0:02:27]} 17. Rfd1 {[%clk 0:02:06]}  Nb6 {[%clk 0:02:02]} 18. a4 {[%clk 0:02:05]}  a5 {[%clk 0:01:34]} 19. Nd3 {[%clk 0:01:54]}  Nxd4 {[%clk 0:01:27]} 20. Bxd4 {[%clk 0:01:39]}  Bxd4 {[%clk 0:01:28]} 21. Nf4 {[%clk 0:01:39]}  Bxe3 {[%clk 0:01:28]} 22. fxe3 {[%clk 0:01:40]}  Nc4 {[%clk 0:01:21]} 23. Qc3 {[%clk 0:01:17]}  Qb6 {[%clk 0:01:16]} 24. Nxd5 {[%clk 0:01:17]}  Bxd5 {[%clk 0:01:15]} 25. Rxd5 {[%clk 0:01:18]}  Qxe3+ {[%clk 0:00:58]} 26. Qxe3 {[%clk 0:01:18]}  Nxe3 {[%clk 0:00:59]} 27. Rb5 {[%clk 0:01:18]}  Nxg2 {[%clk 0:00:54]} 28. Kxg2 {[%clk 0:01:19]}  Ra7 {[%clk 0:00:54]} 29. Rc1 {[%clk 0:01:17]}  Rd8 {[%clk 0:00:32]} 30. Rc7 {[%clk 0:01:16]}  e6 {[%clk 0:00:26]} 31. Rbxb7 {[%clk 0:01:11]}  Rxb7 {[%clk 0:00:26]} 32. Rxb7 {[%clk 0:01:12]}  Rd2 {[%clk 0:00:21]} 33. Kf3 {[%clk 0:01:12]}  Kg7 {[%clk 0:00:20]} 34. Ke3 {[%clk 0:01:11]}  Rd1 {[%clk 0:00:20]} 35. Rb5 {[%clk 0:01:10]}  Rb1 {[%clk 0:00:19]} 36. Kd4 {[%clk 0:00:58]}  h5 {[%clk 0:00:18]} 37. Kc5 {[%clk 0:00:56]}  f5 {[%clk 0:00:13]} 38. Kb6 {[%clk 0:00:52]}  Re1 {[%clk 0:00:14]} 39. Kxa5 {[%clk 0:00:52]}  Rxe2 {[%clk 0:00:14]} 40. Kb6 {[%clk 0:00:52]}  h4 {[%clk 0:00:15]} 41. a5 {[%clk 0:00:50]}  Rxh2 {[%clk 0:00:14]} 42. gxh4 {[%clk 0:00:49]}  Rxh4 {[%clk 0:00:15]} 43. a6 {[%clk 0:00:49]}  f4 {[%clk 0:00:15]} 44. a7 {[%clk 0:00:47]}  Rh8 {[%clk 0:00:15]} 45. Ra5 {[%clk 0:00:44]}  g5 {[%clk 0:00:09]} 46. a8=Q {[%clk 0:00:44]}  Rxa8 {[%clk 0:00:09]} 47. Rxa8 {[%clk 0:00:45]}  f3 {[%clk 0:00:10]} 48. Kc5 {[%clk 0:00:45]}  g4 {[%clk 0:00:09]} 49. Kd4 {[%clk 0:00:44]}  f2 {[%clk 0:00:09]} 50. Ra1 {[%clk 0:00:44]}  Kf6 {[%clk 0:00:09]} 51. Ke3 {[%clk 0:00:44]}  g3 {[%clk 0:00:10]} 52. Kf3 {[%clk 0:00:44]} 1-0


[Site "https://www.chess.com"]

[Event "Titled Tuesday Blitz June 6 Early 2023"]
[White "demon64fields"]
[Black "Shevchenko, Kirill"]
[BlackFideId "14129574"]
[WhiteElo "2850"]
[BlackElo "2603"]
[Result "0-1"]
[Round "7"]
[TimeControl "180+2"]
[Date "2023.06.06"]
[WhiteClock "0:00:02"]
[BlackClock "0:01:42"]
[Board "8"]

1. Nf3 {[%clk 0:03:00]}  Nf6 {[%clk 0:03:00]} 2. g3 {[%clk 0:03:01]}  g6 {[%clk 0:03:00]} 3. Bg2 {[%clk 0:03:01]}  Bg7 {[%clk 0:03:01]} 4. O-O {[%clk 0:03:02]}  O-O {[%clk 0:03:02]} 5. d4 {[%clk 0:03:01]}  d6 {[%clk 0:03:02]} 6. a4 {[%clk 0:03:01]}  Nc6 {[%clk 0:02:57]} 7. a5 {[%clk 0:03:01]}  a6 {[%clk 0:02:57]} 8. Nc3 {[%clk 0:03:01]}  Bf5 {[%clk 0:02:56]} 9. Nh4 {[%clk 0:02:56]}  Bg4 {[%clk 0:02:56]} 10. h3 {[%clk 0:02:55]}  Bd7 {[%clk 0:02:56]} 11. e4 {[%clk 0:02:52]}  e5 {[%clk 0:02:56]} 12. dxe5 {[%clk 0:02:49]}  dxe5 {[%clk 0:02:53]} 13. Be3 {[%clk 0:02:46]}  Be6 {[%clk 0:02:51]} 14. Nd5 {[%clk 0:02:43]}  Re8 {[%clk 0:02:32]} 15. c3 {[%clk 0:02:38]}  Ne7 {[%clk 0:02:23]} 16. c4 {[%clk 0:02:33]}  Nc6 {[%clk 0:02:18]} 17. b4 {[%clk 0:02:21]}  Nd4 {[%clk 0:02:12]} 18. Nf3 {[%clk 0:02:22]}  Nxe4 {[%clk 0:02:08]} 19. Nxd4 {[%clk 0:02:21]}  Bxd5 {[%clk 0:02:03]} 20. cxd5 {[%clk 0:01:20]}  Nc3 {[%clk 0:02:02]} 21. Qb3 {[%clk 0:01:20]}  exd4 {[%clk 0:02:02]} 22. Bd2 {[%clk 0:01:19]}  Re2 {[%clk 0:02:00]} 23. Bxc3 {[%clk 0:01:12]}  dxc3 {[%clk 0:02:00]} 24. d6 {[%clk 0:01:12]}  Qxd6 {[%clk 0:01:57]} 25. Rad1 {[%clk 0:01:02]}  Rd2 {[%clk 0:01:56]} 26. Bxb7 {[%clk 0:00:41]}  Rb8 {[%clk 0:01:54]} 27. Rxd2 {[%clk 0:00:36]}  cxd2 {[%clk 0:01:54]} 28. Bd5 {[%clk 0:00:33]}  Rxb4 {[%clk 0:01:52]} 29. Bxf7+ {[%clk 0:00:30]}  Kf8 {[%clk 0:01:53]} 30. Qf3 {[%clk 0:00:31]}  Qf6 {[%clk 0:01:53]} 31. Bd5 {[%clk 0:00:22]}  Qxf3 {[%clk 0:01:53]} 32. Bxf3 {[%clk 0:00:23]}  c5 {[%clk 0:01:50]} 33. Rd1 {[%clk 0:00:21]}  Bc3 {[%clk 0:01:48]} 34. Kf1 {[%clk 0:00:17]}  c4 {[%clk 0:01:48]} 35. Ke2 {[%clk 0:00:17]}  Ke7 {[%clk 0:01:48]} 36. Be4 {[%clk 0:00:13]}  Kd6 {[%clk 0:01:48]} 37. Bc2 {[%clk 0:00:13]}  Kc5 {[%clk 0:01:48]} 38. f4 {[%clk 0:00:14]}  Rb2 {[%clk 0:01:48]} 39. Be4 {[%clk 0:00:13]}  Bxa5 {[%clk 0:01:48]} 40. f5 {[%clk 0:00:11]}  Kd4 {[%clk 0:01:48]} 41. Bb1 {[%clk 0:00:07]}  gxf5 {[%clk 0:01:45]} 42. Bxf5 {[%clk 0:00:06]}  h6 {[%clk 0:01:46]} 43. Rf1 {[%clk 0:00:04]}  c3 {[%clk 0:01:44]} 44. Kd1 {[%clk 0:00:03]}  Ke3 {[%clk 0:01:43]} 45. Bc2 {[%clk 0:00:03]}  Ra2 {[%clk 0:01:42]} 46. Bb1 {[%clk 0:00:02]}  c2+ {[%clk 0:01:42]} 0-1


[Site "https://www.chess.com"]

[Event "Titled Tuesday Blitz June 6 Early 2023"]
[White "Harutjunyan, Gevorg"]
[Black "Svane, Rasmus"]
[WhiteFideId "13300873"]
[BlackFideId "4657101"]
[WhiteElo "2474"]
[BlackElo "2601"]
[Result "0-1"]
[Round "7"]
[TimeControl "180+2"]
[Date "2023.06.06"]
[WhiteClock "0:00:01"]
[BlackClock "0:00:05"]
[Board "9"]

1. e4 {[%clk 0:03:00]}  c6 {[%clk 0:02:59]} 2. d3 {[%clk 0:03:00]}  d5 {[%clk 0:03:00]} 3. Nf3 {[%clk 0:03:00]}  dxe4 {[%clk 0:02:57]} 4. dxe4 {[%clk 0:03:01]}  Qxd1+ {[%clk 0:02:58]} 5. Kxd1 {[%clk 0:03:02]}  Nf6 {[%clk 0:02:59]} 6. Bd3 {[%clk 0:02:59]}  Nbd7 {[%clk 0:02:58]} 7. Ke2 {[%clk 0:02:41]}  e5 {[%clk 0:02:53]} 8. Nbd2 {[%clk 0:02:39]}  Bd6 {[%clk 0:02:53]} 9. a4 {[%clk 0:02:37]}  b6 {[%clk 0:02:48]} 10. b3 {[%clk 0:02:28]}  Bb7 {[%clk 0:02:35]} 11. a5 {[%clk 0:02:25]}  b5 {[%clk 0:02:32]} 12. Bb2 {[%clk 0:02:14]}  a6 {[%clk 0:02:31]} 13. Rhd1 {[%clk 0:02:03]}  Ke7 {[%clk 0:02:32]} 14. c3 {[%clk 0:01:51]}  Rhd8 {[%clk 0:02:30]} 15. b4 {[%clk 0:01:47]}  c5 {[%clk 0:02:24]} 16. Ba3 {[%clk 0:01:45]}  c4 {[%clk 0:02:23]} 17. Bc2 {[%clk 0:01:45]}  Nf8 {[%clk 0:02:15]} 18. Nh4 {[%clk 0:01:37]}  g6 {[%clk 0:02:14]} 19. g3 {[%clk 0:01:37]}  Ne6 {[%clk 0:02:13]} 20. Ng2 {[%clk 0:01:34]}  Rd7 {[%clk 0:02:12]} 21. Ne3 {[%clk 0:01:32]}  Rad8 {[%clk 0:02:12]} 22. f3 {[%clk 0:01:30]}  Bb8 {[%clk 0:02:05]} 23. Ndf1 {[%clk 0:01:12]}  Nd4+ {[%clk 0:02:05]} 24. cxd4 {[%clk 0:00:58]}  exd4 {[%clk 0:02:06]} 25. Nxc4 {[%clk 0:00:48]}  bxc4 {[%clk 0:02:05]} 26. b5+ {[%clk 0:00:48]}  Ke6 {[%clk 0:01:57]} 27. Ba4 {[%clk 0:00:49]}  Rc7 {[%clk 0:01:46]} 28. Nd2 {[%clk 0:00:41]}  d3+ {[%clk 0:01:32]} 29. Kf2 {[%clk 0:00:39]}  axb5 {[%clk 0:01:25]} 30. Bxb5 {[%clk 0:00:38]}  Ba7+ {[%clk 0:01:25]} 31. Kg2 {[%clk 0:00:28]}  c3 {[%clk 0:01:26]} 32. Nb3 {[%clk 0:00:25]}  c2 {[%clk 0:01:21]} 33. Rxd3 {[%clk 0:00:20]}  Rxd3 {[%clk 0:01:10]} 34. Bxd3 {[%clk 0:00:21]}  Rc3 {[%clk 0:01:11]} 35. Be2 {[%clk 0:00:21]}  Kd7 {[%clk 0:00:50]} 36. Nc1 {[%clk 0:00:17]}  Ne8 {[%clk 0:00:27]} 37. Bb2 {[%clk 0:00:18]}  Rc8 {[%clk 0:00:26]} 38. a6 {[%clk 0:00:18]}  Ba8 {[%clk 0:00:26]} 39. Ra3 {[%clk 0:00:18]}  Nd6 {[%clk 0:00:26]} 40. Rd3 {[%clk 0:00:19]}  Ke6 {[%clk 0:00:25]} 41. Rc3 {[%clk 0:00:14]}  Rxc3 {[%clk 0:00:19]} 42. Bxc3 {[%clk 0:00:15]}  f5 {[%clk 0:00:20]} 43. exf5+ {[%clk 0:00:14]}  Nxf5 {[%clk 0:00:21]} 44. Bc4+ {[%clk 0:00:11]}  Bd5 {[%clk 0:00:20]} 45. Bd3 {[%clk 0:00:12]}  Ne3+ {[%clk 0:00:18]} 46. Kh3 {[%clk 0:00:13]}  Bxf3 {[%clk 0:00:18]} 47. g4 {[%clk 0:00:09]}  Bb8 {[%clk 0:00:15]} 48. Bd4 {[%clk 0:00:06]}  Nxg4 {[%clk 0:00:11]} 49. Bxc2 {[%clk 0:00:05]}  g5 {[%clk 0:00:07]} 50. Nd3 {[%clk 0:00:05]}  Nf6 {[%clk 0:00:05]} 51. Nc5+ {[%clk 0:00:02]}  Kf7 {[%clk 0:00:04]} 52. Bb3+ {[%clk 0:00:01]}  Kg6 {[%clk 0:00:05]} 0-1


[Site "https://www.chess.com"]

[Event "Titled Tuesday Blitz June 6 Early 2023"]
[White "Harsh Suresh"]
[Black "Zhigalko, Sergei"]
[WhiteFideId "45018464"]
[BlackFideId "13502956"]
[WhiteElo "2209"]
[BlackElo "2626"]
[Result "1-0"]
[Round "7"]
[TimeControl "180+2"]
[Date "2023.06.06"]
[WhiteClock "0:01:14"]
[BlackClock "0:00:04"]
[Board "10"]

1. e4 {[%clk 0:03:00]}  c5 {[%clk 0:03:00]} 2. Nf3 {[%clk 0:03:00]}  Nc6 {[%clk 0:03:00]} 3. Bc4 {[%clk 0:03:00]}  Nf6 {[%clk 0:03:00]} 4. e5 {[%clk 0:02:57]}  d5 {[%clk 0:03:00]} 5. Bb5 {[%clk 0:02:56]}  Nd7 {[%clk 0:03:00]} 6. Bxc6 {[%clk 0:02:56]}  bxc6 {[%clk 0:03:00]} 7. d3 {[%clk 0:02:57]}  g6 {[%clk 0:02:28]} 8. Qe2 {[%clk 0:02:55]}  Bg7 {[%clk 0:02:26]} 9. O-O {[%clk 0:02:51]}  Nf8 {[%clk 0:02:26]} 10. b3 {[%clk 0:02:41]}  Bg4 {[%clk 0:02:25]} 11. Bb2 {[%clk 0:02:39]}  Ne6 {[%clk 0:02:19]} 12. h3 {[%clk 0:02:32]}  Bxf3 {[%clk 0:02:13]} 13. Qxf3 {[%clk 0:02:32]}  O-O {[%clk 0:02:12]} 14. Nd2 {[%clk 0:02:28]}  Nd4 {[%clk 0:01:37]} 15. Bxd4 {[%clk 0:02:27]}  cxd4 {[%clk 0:01:38]} 16. Qg3 {[%clk 0:02:26]}  e6 {[%clk 0:01:32]} 17. f4 {[%clk 0:02:24]}  c5 {[%clk 0:01:29]} 18. Nf3 {[%clk 0:02:23]}  Qa5 {[%clk 0:01:26]} 19. Qe1 {[%clk 0:02:23]}  Qa3 {[%clk 0:01:22]} 20. Qc1 {[%clk 0:02:22]}  Qa5 {[%clk 0:01:22]} 21. Qe1 {[%clk 0:02:21]}  Qa3 {[%clk 0:01:21]} 22. Qc1 {[%clk 0:02:21]}  Qa6 {[%clk 0:01:20]} 23. a4 {[%clk 0:02:16]}  f6 {[%clk 0:01:17]} 24. exf6 {[%clk 0:02:08]}  Bxf6 {[%clk 0:01:17]} 25. Qd2 {[%clk 0:02:06]}  Rae8 {[%clk 0:01:13]} 26. Rae1 {[%clk 0:02:06]}  Bd8 {[%clk 0:01:05]} 27. Re2 {[%clk 0:01:53]}  Ba5 {[%clk 0:01:04]} 28. Qc1 {[%clk 0:01:54]}  Bc7 {[%clk 0:01:03]} 29. g3 {[%clk 0:01:52]}  c4 {[%clk 0:01:02]} 30. Ng5 {[%clk 0:01:45]}  cxd3 {[%clk 0:00:56]} 31. cxd3 {[%clk 0:01:44]}  Qxd3 {[%clk 0:00:56]} 32. Qxc7 {[%clk 0:01:41]}  Qxg3+ {[%clk 0:00:36]} 33. Rg2 {[%clk 0:01:41]}  Qh4 {[%clk 0:00:37]} 34. Qd7 {[%clk 0:01:20]}  d3 {[%clk 0:00:12]} 35. Rg4 {[%clk 0:01:17]}  Qh5 {[%clk 0:00:08]} 36. Nxe6 {[%clk 0:01:15]}  d2 {[%clk 0:00:04]} 37. Qg7# {[%clk 0:01:14]} 1-0


[Site "https://www.chess.com"]

[Event "Titled Tuesday Blitz June 6 Early 2023"]
[White "Kevlishvili, Robby"]
[Black "Molina, Roberto Junio Brito"]
[WhiteFideId "1040634"]
[BlackFideId "2109450"]
[WhiteElo "2572"]
[BlackElo "2376"]
[Result "1-0"]
[Round "7"]
[TimeControl "180+2"]
[Date "2023.06.06"]
[WhiteClock "0:00:20"]
[BlackClock "0:00:05"]
[Board "11"]

1. e4 {[%clk 0:03:00]}  c6 {[%clk 0:02:59]} 2. d4 {[%clk 0:02:58]}  d5 {[%clk 0:03:00]} 3. e5 {[%clk 0:02:58]}  Bf5 {[%clk 0:03:00]} 4. Nc3 {[%clk 0:02:59]}  e6 {[%clk 0:03:00]} 5. g4 {[%clk 0:02:54]}  Bg6 {[%clk 0:03:00]} 6. Nge2 {[%clk 0:02:54]}  f6 {[%clk 0:03:00]} 7. Nf4 {[%clk 0:02:51]}  fxe5 {[%clk 0:03:01]} 8. dxe5 {[%clk 0:02:50]}  Bf7 {[%clk 0:03:01]} 9. Bg2 {[%clk 0:02:46]}  Nd7 {[%clk 0:03:00]} 10. Qe2 {[%clk 0:02:45]}  Bb4 {[%clk 0:02:59]} 11. Bd2 {[%clk 0:02:45]}  Ne7 {[%clk 0:02:58]} 12. O-O-O {[%clk 0:02:44]}  Ba5 {[%clk 0:02:45]} 13. Kb1 {[%clk 0:02:44]}  Qc7 {[%clk 0:02:42]} 14. Nd3 {[%clk 0:02:40]}  O-O-O {[%clk 0:02:40]} 15. f4 {[%clk 0:02:40]}  Kb8 {[%clk 0:02:38]} 16. Rhe1 {[%clk 0:02:38]}  Rde8 {[%clk 0:02:36]} 17. f5 {[%clk 0:02:35]}  Ka8 {[%clk 0:02:30]} 18. Bf4 {[%clk 0:02:29]}  Qb8 {[%clk 0:02:24]} 19. Bg3 {[%clk 0:02:14]}  Bc7 {[%clk 0:02:22]} 20. Na4 {[%clk 0:02:06]}  Nc8 {[%clk 0:01:50]} 21. Nac5 {[%clk 0:02:02]}  Nxc5 {[%clk 0:01:40]} 22. Nxc5 {[%clk 0:02:03]}  Nb6 {[%clk 0:01:37]} 23. b3 {[%clk 0:01:52]}  exf5 {[%clk 0:01:27]} 24. gxf5 {[%clk 0:01:47]}  g6 {[%clk 0:01:21]} 25. e6 {[%clk 0:01:46]}  Bxg3 {[%clk 0:01:14]} 26. hxg3 {[%clk 0:01:46]}  gxf5 {[%clk 0:01:09]} 27. exf7 {[%clk 0:01:19]}  Rxe2 {[%clk 0:01:08]} 28. Rxe2 {[%clk 0:01:20]}  Rf8 {[%clk 0:00:56]} 29. Re7 {[%clk 0:01:17]}  a5 {[%clk 0:00:53]} 30. Rde1 {[%clk 0:01:13]}  Qxg3 {[%clk 0:00:48]} 31. R1e2 {[%clk 0:01:02]}  Nc8 {[%clk 0:00:22]} 32. Nd7 {[%clk 0:00:22]}  Nxe7 {[%clk 0:00:16]} 33. Nxf8 {[%clk 0:00:22]}  Qg7 {[%clk 0:00:06]} 34. Rxe7 {[%clk 0:00:22]}  Qxg2 {[%clk 0:00:07]} 35. Ne6 {[%clk 0:00:20]}  Qg1+ {[%clk 0:00:05]} 36. Kb2 {[%clk 0:00:20]} 1-0


[Site "https://www.chess.com"]

[Event "Titled Tuesday Blitz June 6 Early 2023"]
[White "qx4z"]
[Black "Babazada, Khazar"]
[BlackFideId "13413554"]
[WhiteElo "2763"]
[BlackElo "2369"]
[Result "1/2-1/2"]
[Round "7"]
[TimeControl "180+2"]
[Date "2023.06.06"]
[WhiteClock "0:00:09"]
[BlackClock "0:00:04"]
[Board "12"]

1. d4 {[%clk 0:03:00]}  d5 {[%clk 0:02:52]} 2. Bf4 {[%clk 0:03:00]}  Nf6 {[%clk 0:02:50]} 3. e3 {[%clk 0:03:00]}  Bf5 {[%clk 0:02:50]} 4. c4 {[%clk 0:02:59]}  e6 {[%clk 0:02:51]} 5. Nc3 {[%clk 0:02:59]}  Nc6 {[%clk 0:02:51]} 6. Bd3 {[%clk 0:02:59]}  Bxd3 {[%clk 0:02:50]} 7. Qxd3 {[%clk 0:03:00]}  Bd6 {[%clk 0:02:50]} 8. Nge2 {[%clk 0:03:00]}  Nb4 {[%clk 0:02:43]} 9. Qd1 {[%clk 0:02:53]}  dxc4 {[%clk 0:02:43]} 10. O-O {[%clk 0:02:47]}  c6 {[%clk 0:02:42]} 11. Bxd6 {[%clk 0:02:43]}  Qxd6 {[%clk 0:02:42]} 12. e4 {[%clk 0:02:43]}  e5 {[%clk 0:02:40]} 13. f4 {[%clk 0:02:36]}  exd4 {[%clk 0:02:39]} 14. e5 {[%clk 0:02:36]}  Qc7 {[%clk 0:02:15]} 15. exf6 {[%clk 0:02:30]}  dxc3 {[%clk 0:02:15]} 16. fxg7 {[%clk 0:02:31]}  Rg8 {[%clk 0:02:15]} 17. Qd4 {[%clk 0:02:23]}  Qb6 {[%clk 0:02:14]} 18. bxc3 {[%clk 0:02:18]}  Nd3 {[%clk 0:02:02]} 19. Rab1 {[%clk 0:02:11]}  Qxd4+ {[%clk 0:01:44]} 20. Nxd4 {[%clk 0:02:12]}  Rxg7 {[%clk 0:01:23]} 21. Rxb7 {[%clk 0:02:11]}  Rg6 {[%clk 0:01:22]} 22. f5 {[%clk 0:01:58]}  Rd6 {[%clk 0:01:19]} 23. Rf3 {[%clk 0:01:55]}  Kf8 {[%clk 0:00:54]} 24. Rh3 {[%clk 0:01:41]}  h6 {[%clk 0:00:53]} 25. Re3 {[%clk 0:01:32]}  c5 {[%clk 0:00:46]} 26. Nb5 {[%clk 0:01:19]}  Rb6 {[%clk 0:00:44]} 27. Ree7 {[%clk 0:01:20]}  Rxb7 {[%clk 0:00:24]} 28. Rxb7 {[%clk 0:01:21]}  Re8 {[%clk 0:00:24]} 29. h4 {[%clk 0:01:15]}  Re1+ {[%clk 0:00:21]} 30. Kh2 {[%clk 0:01:16]}  Nf2 {[%clk 0:00:16]} 31. Nd6 {[%clk 0:01:05]}  Re3 {[%clk 0:00:15]} 32. g3 {[%clk 0:00:47]}  Ng4+ {[%clk 0:00:10]} 33. Kh3 {[%clk 0:00:48]}  h5 {[%clk 0:00:11]} 34. f6 {[%clk 0:00:46]}  Kg8 {[%clk 0:00:10]} 35. Rxf7 {[%clk 0:00:30]}  Re2 {[%clk 0:00:10]} 36. Rg7+ {[%clk 0:00:30]}  Kf8 {[%clk 0:00:09]} 37. Rf7+ {[%clk 0:00:29]}  Kg8 {[%clk 0:00:09]} 38. Rg7+ {[%clk 0:00:30]}  Kf8 {[%clk 0:00:09]} 39. Rxg4 {[%clk 0:00:30]}  hxg4+ {[%clk 0:00:08]} 40. Kxg4 {[%clk 0:00:31]}  Re6 {[%clk 0:00:05]} 41. Nf5 {[%clk 0:00:26]}  Rxf6 {[%clk 0:00:05]} 42. h5 {[%clk 0:00:26]}  Ra6 {[%clk 0:00:04]} 43. h6 {[%clk 0:00:24]}  Kg8 {[%clk 0:00:04]} 44. Kh5 {[%clk 0:00:24]}  Rxa2 {[%clk 0:00:04]} 45. g4 {[%clk 0:00:25]}  Ra6 {[%clk 0:00:03]} 46. g5 {[%clk 0:00:25]}  Re6 {[%clk 0:00:03]} 47. g6 {[%clk 0:00:25]}  a5 {[%clk 0:00:03]} 48. h7+ {[%clk 0:00:21]}  Kh8 {[%clk 0:00:04]} 49. Nh6 {[%clk 0:00:19]}  Kg7 {[%clk 0:00:02]} 50. Nf5+ {[%clk 0:00:16]}  Kh8 {[%clk 0:00:03]} 51. Nh6 {[%clk 0:00:09]}  Kg7 {[%clk 0:00:03]} 52. Nf5+ {[%clk 0:00:09]}  Kh8 {[%clk 0:00:04]} 1/2-1/2


[Site "https://www.chess.com"]

[Event "Titled Tuesday Blitz June 6 Early 2023"]
[White "Ibarra Jerez, Jose Carlos"]
[Black "Kushko, Dmitriy"]
[WhiteFideId "2226332"]
[BlackFideId "14162261"]
[WhiteElo "2631"]
[BlackElo "2230"]
[Result "1-0"]
[Round "7"]
[TimeControl "180+2"]
[Date "2023.06.06"]
[WhiteClock "0:00:16"]
[BlackClock "0:00:02"]
[Board "13"]

1. e4 {[%clk 0:03:00]}  g6 {[%clk 0:03:00]} 2. d4 {[%clk 0:03:00]}  Bg7 {[%clk 0:03:00]} 3. Nf3 {[%clk 0:03:00]}  d6 {[%clk 0:03:00]} 4. Bc4 {[%clk 0:03:01]}  Nc6 {[%clk 0:03:00]} 5. Ng5 {[%clk 0:03:01]}  e6 {[%clk 0:02:59]} 6. d5 {[%clk 0:02:58]}  Nd4 {[%clk 0:02:01]} 7. Be3 {[%clk 0:02:05]}  c5 {[%clk 0:01:44]} 8. c3 {[%clk 0:01:36]}  exd5 {[%clk 0:01:43]} 9. Bxd5 {[%clk 0:01:34]}  Ne6 {[%clk 0:01:43]} 10. Qd2 {[%clk 0:01:19]}  Nf6 {[%clk 0:01:21]} 11. Na3 {[%clk 0:01:19]}  Nxd5 {[%clk 0:01:17]} 12. Qxd5 {[%clk 0:01:20]}  h6 {[%clk 0:00:58]} 13. Nf3 {[%clk 0:01:15]}  Nc7 {[%clk 0:00:37]} 14. Qd2 {[%clk 0:01:15]}  O-O {[%clk 0:00:32]} 15. Bxh6 {[%clk 0:01:13]}  Re8 {[%clk 0:00:30]} 16. O-O-O {[%clk 0:01:08]}  Rxe4 {[%clk 0:00:30]} 17. Bxg7 {[%clk 0:01:07]}  Kxg7 {[%clk 0:00:31]} 18. Qxd6 {[%clk 0:01:04]}  Qxd6 {[%clk 0:00:31]} 19. Rxd6 {[%clk 0:01:04]}  Bg4 {[%clk 0:00:32]} 20. Nd2 {[%clk 0:00:54]}  Re2 {[%clk 0:00:26]} 21. Rf1 {[%clk 0:00:50]}  Rae8 {[%clk 0:00:24]} 22. Nc2 {[%clk 0:00:49]}  R2e6 {[%clk 0:00:18]} 23. Rxe6 {[%clk 0:00:38]}  Bxe6 {[%clk 0:00:18]} 24. Ne3 {[%clk 0:00:36]}  g5 {[%clk 0:00:15]} 25. b3 {[%clk 0:00:33]}  g4 {[%clk 0:00:15]} 26. Ne4 {[%clk 0:00:27]}  Bxb3 {[%clk 0:00:11]} 27. Nd6 {[%clk 0:00:25]}  Rxe3 {[%clk 0:00:06]} 28. fxe3 {[%clk 0:00:26]}  Bd5 {[%clk 0:00:05]} 29. e4 {[%clk 0:00:21]}  Bxa2 {[%clk 0:00:04]} 30. Nxb7 {[%clk 0:00:18]}  c4 {[%clk 0:00:03]} 31. Nd6 {[%clk 0:00:18]}  f6 {[%clk 0:00:02]} 32. Nf5+ {[%clk 0:00:16]}  Kg6 {[%clk 0:00:02]} 33. Ne7+ {[%clk 0:00:16]}  Kg5 {[%clk 0:00:02]} 34. Nd5 {[%clk 0:00:17]}  Bb3 {[%clk 0:00:02]} 35. Nxc7 {[%clk 0:00:16]} 1-0


[Site "https://www.chess.com"]